bitfinex/quotes_BTCUSD_20250922
["timestamp","ask_amount","ask_price","bid_price","bid_amount"]
[1758550908596,0.29390272,113470.0,113460.0,0.55628324]
[1758550909050,0.11568468,113470.0,113460.0,0.55628324]
[1758550909438,0.11568468,113470.0,113460.0,0.84153923]
[1758550910440,0.11568468,113470.0,113460.0,0.84414923]
[1758550910712,0.11568468,113470.0,113460.0,0.55889324]
[1758550910918,0.11568468,113470.0,113460.0,0.84414923]
[1758550911125,0.29194272,113470.0,113460.0,0.55676324]
[1758550911305,0.29390272,113470.0,113460.0,0.55676324]
[1758550911484,0.29194272,113470.0,113460.0,0.84201923]
[1758550911685,0.11568468,113470.0,113460.0,0.84201923]
[1758550912254,0.11568468,113470.0,113460.0,0.55676324]
[1758550912471,0.29194272,113470.0,113460.0,0.84201923]
[1758550912672,0.11568468,113470.0,113460.0,0.84201923]
[1758550913449,0.11568468,113470.0,113460.0,0.55676324]
[1758550913657,0.11568468,113470.0,113460.0,0.84201923]
[1758550914312,0.29194272,113470.0,113460.0,0.27156324]
[1758550914550,0.11568468,113470.0,113460.0,0.84237923]
[1758550915441,0.11568468,113470.0,113460.0,0.80237923]
[1758550915995,0.11568468,113470.0,113460.0,0.51712324]
[1758550916194,0.11568468,113470.0,113460.0,0.51681923]
[1758550916394,0.29390272,113470.0,113460.0,0.80241923]
[1758550916596,0.29194272,113470.0,113460.0,0.80241923]
[1758550917545,0.29194272,113470.0,113460.0,0.51716324]
[1758550917723,0.29712272,113470.0,113460.0,0.80241923]
[1758550917880,0.29395272,113470.0,113460.0,0.80241923]
[1758550918089,0.29194272,113470.0,113460.0,0.80241923]
[1758550918534,0.29194272,113470.0,113460.0,0.51716324]
[1758550918886,0.29194272,113470.0,113460.0,0.80241923]
[1758550919061,0.29194272,113470.0,113460.0,0.80229923]
[1758550919257,0.11568468,113470.0,113460.0,0.80229923]
[1758550919462,0.29194272,113470.0,113460.0,0.51681923]
[1758550919701,0.32039272,113470.0,113460.0,0.29352]
[1758550919908,0.32039272,113470.0,113460.0,0.008]
[1758550920329,0.32039272,113470.0,113460.0,0.26944]
[1758550920548,0.32039272,113470.0,113460.0,0.2936]
[1758550920771,0.66039272,113470.0,113460.0,0.008]
[1758550920980,0.66039272,113470.0,113460.0,0.26756]
[1758550921190,0.66039272,113470.0,113460.0,0.008]
[1758550921839,0.95220925,113470.0,113460.0,0.008]
[1758550922058,0.95220925,113470.0,113460.0,0.007]
[1758550922492,1.04512925,113470.0,113460.0,0.007]
[1758550923177,0.75948925,113470.0,113460.0,0.007]
[1758550923589,0.51628911,113450.0,113440.0,0.00012489]
[1758550923842,0.80188911,113450.0,113440.0,0.00012489]
[1758550924047,0.80389911,113450.0,113440.0,0.00012489]
[1758550924258,0.83033911,113450.0,113440.0,0.00012489]
[1758550924676,0.54473911,113450.0,113440.0,0.00012489]
[1758550925182,0.54473911,113450.0,113440.0,0.00112489]
[1758550925386,0.54473911,113450.0,113440.0,0.00812489]
[1758550925589,0.60791855,113450.0,113440.0,0.00812489]
[1758550925762,0.54473911,113450.0,113440.0,0.00812489]
[1758550926434,0.55091967,113450.0,113440.0,0.00812489]
[1758550926590,0.55091967,113450.0,113440.0,0.00112489]
[1758550926962,0.54473911,113450.0,113440.0,0.00312489]
[1758550927295,0.55091928,113450.0,113440.0,0.00312489]
[1758550928100,0.54473911,113450.0,113440.0,0.00312489]
[1758550928280,0.54473911,113450.0,113440.0,0.00513489]
[1758550928281,0.80405911,113450.0,113440.0,0.00513489]
[1758550928736,0.80425911,113450.0,113440.0,0.00513489]
[1758550928936,0.54473911,113450.0,113440.0,0.00312489]
[1758550929111,0.83069911,113450.0,113440.0,0.00312489]
[1758550929473,0.54473911,113450.0,113440.0,0.00312489]
[1758550929650,0.51628911,113450.0,113440.0,0.18143954]
[1758550930476,0.54473911,113450.0,113440.0,0.00312489]
[1758550930829,0.83077911,113450.0,113440.0,0.00312489]
[1758550932889,0.54473911,113450.0,113440.0,0.00312489]
[1758550933196,0.83081911,113450.0,113440.0,0.00312489]
[1758550934155,0.83995706,113450.0,113440.0,0.00312489]
[1758550934682,0.86646952,113450.0,113440.0,0.00312489]
[1758550935774,0.86642952,113450.0,113440.0,0.00312489]
[1758550936504,0.58038952,113450.0,113440.0,0.00312489]
[1758550937061,0.86678952,113450.0,113440.0,0.00312489]
[1758550937268,0.86670952,113450.0,113440.0,0.00012489]
[1758550937472,0.86770952,113450.0,113440.0,0.00012489]
[1758550939474,0.17635129,113410.0,113400.0,0.09751]
[1758550939692,0.17635129,113410.0,113400.0,0.00214497]
[1758550940147,0.17635129,113410.0,113400.0,0.24773989]
[1758550940379,0.17635129,113410.0,113400.0,0.17851181]
[1758550940657,0.17635129,113410.0,113400.0,0.06965324]
[1758550940874,0.20625129,113410.0,113400.0,0.01812497]
[1758550941314,0.17635129,113410.0,113400.0,0.19651181]
[1758550941535,0.18517673,113410.0,113400.0,0.18251181]
[1758550941748,0.18517673,113410.0,113400.0,0.19251181]
[1758550942208,0.17635129,113410.0,113400.0,0.18070181]
[1758550942429,0.52317238,113420.0,113400.0,0.18412181]
[1758550942634,0.55167238,113420.0,113400.0,0.26897148]
[1758550942876,0.81171252,113420.0,113400.0,0.27339148]
[1758550943201,0.18131129,113410.0,113400.0,0.01014497]
[1758550943401,0.18131129,113410.0,113400.0,0.00812497]
[1758550943607,0.20625129,113410.0,113400.0,0.00712497]
[1758550943832,0.54625129,113410.0,113400.0,0.00712497]
[1758550944042,0.55515254,113410.0,113400.0,0.00712497]
[1758550944690,0.55515254,113410.0,113400.0,0.00012497]
[1758550944897,0.58167241,113410.0,113400.0,0.00312497]
[1758550945272,0.58167241,113410.0,113400.0,0.00012497]
[1758550945497,0.86859241,113410.0,113400.0,0.00112497]
[1758550945955,0.86859241,113410.0,113400.0,0.00812497]
[1758550946152,0.86859241,113410.0,113400.0,0.00712497]
[1758550946412,0.86859241,113410.0,113400.0,0.00012497]
[1758550946615,0.57874241,113410.0,113400.0,0.00214497]
[1758550946815,0.55380241,113410.0,113400.0,0.00214497]
[1758550947127,0.55380241,113410.0,113400.0,0.17851181]
[1758550947337,0.55177241,113410.0,113400.0,0.17851181]
[1758550947545,0.58145241,113410.0,113400.0,0.00012497]
[1758550947760,0.58145241,113410.0,113400.0,0.00312497]
[1758550948689,0.36651987,113410.0,113400.0,0.09274464]
[1758550948874,0.36651987,113410.0,113400.0,0.26911148]
[1758550948875,0.51635129,113410.0,113400.0,0.26911148]
[1758550949016,0.51635129,113410.0,113400.0,0.09274464]
[1758550949216,0.51635129,113410.0,113400.0,0.26692148]
[1758550949665,0.51635129,113410.0,113400.0,0.09055464]
[1758550949858,0.54603129,113410.0,113400.0,0.00312497]
[1758550950299,0.55220813,113410.0,113400.0,0.00312497]
[1758550951065,0.57872799,113410.0,113400.0,0.00312497]
[1758550951757,0.17636684,113400.0,113380.0,0.49366965]
[1758550951905,0.17636684,113400.0,113390.0,0.08526967]
[1758550952106,0.20081684,113400.0,113390.0,0.08526967]
[1758550952309,0.2122267,113400.0,113390.0,0.08526967]
[1758550952700,0.4992267,113400.0,113390.0,0.08526967]
[1758550953069,0.4992267,113400.0,113390.0,0.08626967]
[1758550953287,0.4992267,113400.0,113390.0,0.001]
[1758550953288,0.4991867,113400.0,113390.0,0.001]
[1758550954236,0.8391867,113400.0,113390.0,0.001]
[1758550954445,0.8391867,113400.0,113390.0,0.006]
[1758550955293,0.8391867,113400.0,113390.0,0.001]
[1758550955502,0.8391867,113400.0,113380.0,0.00014032]
[1758550955503,0.51638239,113390.0,113380.0,0.00014032]
[1758550955709,0.52256225,113390.0,113380.0,0.00014032]
[1758550955916,0.52256225,113390.0,113380.0,0.00230032]
[1758550956532,0.52256225,113390.0,113380.0,0.17869827]
[1758550956734,0.52256225,113390.0,113380.0,0.28521773]
[1758550956942,0.52256225,113390.0,113380.0,0.08856999]
[1758550957373,0.52256225,113390.0,113380.0,0.26496794]
[1758550957575,0.52256225,113390.0,113380.0,0.26996794]
[1758550957920,0.52256225,113390.0,113380.0,0.09356999]
[1758550958118,0.52256225,113390.0,113380.0,0.15965286]
[1758550958744,0.52459225,113390.0,113380.0,0.00614032]
[1758550958959,0.55224225,113390.0,113380.0,0.00614032]
[1758550960124,0.55224225,113390.0,113380.0,0.01091032]
[1758550960125,0.51786749,113390.0,113380.0,0.01091032]
[1758550960351,0.51989749,113390.0,113380.0,0.00830032]
[1758550960563,0.51786749,113390.0,113380.0,0.00830032]
[1758550961623,0.51786749,113390.0,113380.0,0.18469827]
[1758550962205,0.51786749,113390.0,113380.0,0.00830032]
[1758550962385,0.5178663,113390.0,113380.0,0.00830032]
[1758550962790,0.5230963,113390.0,113380.0,0.00614032]
[1758550963001,0.5475463,113390.0,113380.0,0.00614032]
[1758550963723,0.5443463,113390.0,113380.0,0.00830032]
[1758550963961,0.5178663,113390.0,113380.0,0.18469827]
[1758550964175,0.18256106,113390.0,113380.0,0.27215794]
[1758550964351,0.18256106,113390.0,113380.0,0.27257794]
[1758550964849,0.18256106,113390.0,113380.0,0.27215794]
[1758550965052,0.00617867,113390.0,113380.0,0.27215794]
[1758550965687,0.18256106,113390.0,113380.0,0.27215794]
[1758550966763,0.00617867,113390.0,113380.0,0.27257794]
[1758550966987,0.18256106,113390.0,113380.0,0.27038794]
[1758550967196,0.18256106,113390.0,113380.0,0.26996794]
[1758550967621,0.00617867,113390.0,113380.0,0.26996794]
[1758550967835,0.18256106,113390.0,113380.0,0.26996794]
[1758550968270,0.21224106,113390.0,113380.0,0.09140999]
[1758550968512,0.21224106,113390.0,113380.0,0.37796999]
[1758550968707,0.21224106,113390.0,113380.0,0.55436794]
[1758550969108,0.21224106,113390.0,113380.0,0.37796999]
[1758550969789,0.21224106,113390.0,113380.0,0.55436794]
[1758550969996,0.20904106,113390.0,113380.0,0.55652794]
[1758550970428,0.21224106,113390.0,113380.0,0.55436794]
[1758550970883,0.20904106,113390.0,113380.0,0.55652794]
[1758550971425,0.21224106,113390.0,113380.0,0.37776999]
[1758550971835,0.20904106,113390.0,113380.0,0.55632794]
[1758550972289,0.20904106,113390.0,113380.0,0.53132794]
[1758550972699,0.21224106,113390.0,113380.0,0.35276999]
[1758550973137,0.21224106,113390.0,113380.0,0.53132794]
[1758550973748,0.20904106,113390.0,113380.0,0.53132794]
[1758550973955,0.21224106,113390.0,113380.0,0.53132794]
[1758550974164,0.20904106,113390.0,113380.0,0.53132794]
[1758550974821,0.21224106,113390.0,113380.0,0.35492999]
[1758550975902,0.21224106,113390.0,113380.0,0.53132794]
[1758550976165,0.20904106,113390.0,113380.0,0.53132794]
[1758550976369,0.21224106,113390.0,113380.0,0.53132794]
[1758550976752,0.21224106,113390.0,113380.0,0.35492999]
[1758550977312,0.21224106,113390.0,113380.0,0.53132794]
[1758550977542,0.18256106,113390.0,113380.0,0.53132794]
[1758550977734,0.17638239,113390.0,113380.0,0.53132794]
[1758550977943,0.20915203,113390.0,113380.0,0.35492999]
[1758550978082,0.21216203,113390.0,113380.0,0.35276999]
[1758550978497,0.21216203,113390.0,113380.0,0.35484999]
[1758550979787,0.21216203,113390.0,113380.0,0.06640999]
[1758550980049,0.21216203,113390.0,113380.0,0.35232999]
[1758550980998,0.17639795,113380.0,113370.0,0.06539979]
[1758550981216,0.21217759,113380.0,113370.0,0.43656987]
[1758550981430,0.21217759,113380.0,113370.0,0.37117008]
[1758550983049,0.17641351,113370.0,113360.0,0.31071022]
[1758550983279,0.17641351,113370.0,113360.0,0.58373843]
[1758550983419,0.20391795,113380.0,113360.0,0.58373843]
[1758550983664,0.17641351,113370.0,113360.0,0.58373843]
[1758550984317,0.17641351,113370.0,113360.0,0.58592843]
[1758550984497,0.17641351,113370.0,113360.0,0.59192843]
[1758550984698,0.17641351,113370.0,113360.0,0.875221]
[1758550984946,0.17641351,113370.0,113360.0,0.59273843]
[1758550985829,0.17641351,113370.0,113360.0,0.65791214]
[1758550986057,0.21481055,113370.0,113360.0,0.64914289]
[1758550986499,0.21481055,113370.0,113360.0,0.18667382]
[1758550986700,0.21481055,113370.0,113360.0,0.47267382]
[1758550986926,0.21481055,113370.0,113360.0,0.61895099]
[1758550987159,0.21481055,113370.0,113360.0,0.36031415]
[1758550987820,0.20599351,113370.0,113360.0,0.36031415]
[1758550988050,0.20599351,113370.0,113360.0,0.53674322]
[1758550988839,0.20599351,113370.0,113360.0,0.36031415]
[1758550990122,0.20599351,113370.0,113360.0,0.53674322]
[1758550990548,0.20599351,113370.0,113360.0,0.36031415]
[1758550990755,0.21487909,113370.0,113360.0,0.36031415]
[1758550991688,0.21487909,113370.0,113360.0,0.07431415]
[1758550991912,0.21487909,113370.0,113360.0,0.00914044]
[1758550992790,0.24140744,113370.0,113360.0,0.00014044]
[1758550993003,0.21689744,113370.0,113360.0,0.00222044]
[1758550993226,0.20294186,113370.0,113360.0,0.00622044]
[1758550993664,0.23265186,113370.0,113360.0,0.00622044]
[1758550994064,0.23265186,113370.0,113360.0,0.00414044]
[1758550995272,0.20294186,113370.0,113360.0,0.20031241]
[1758550995502,0.20294186,113370.0,113360.0,0.2487773]
[1758550995741,0.17641351,113370.0,113360.0,0.2487773]
[1758550995995,0.5151149,113380.0,113360.0,0.2487773]
[1758550996248,0.5429249,113380.0,113360.0,0.33623697]
[1758550996513,0.80219795,113380.0,113370.0,0.17641351]
[1758550996762,0.51639795,113380.0,113370.0,0.17851351]
[1758550997197,0.55066503,113380.0,113370.0,0.17851351]
[1758550997406,0.55166503,113380.0,113370.0,0.17851351]
[1758550997613,0.55066503,113380.0,113370.0,0.17851351]
[1758550997843,0.55380503,113380.0,113370.0,0.17851351]
[1758550998050,0.55380503,113380.0,113360.0,0.32794697]
[1758550998268,0.17641351,113370.0,113360.0,0.61366697]
[1758550998491,0.20475351,113370.0,113360.0,0.4373179]
[1758550998698,0.20475351,113370.0,113360.0,0.64389887]
[1758550998911,0.20161351,113370.0,113360.0,0.64599887]
[1758550999169,0.20475351,113370.0,113360.0,0.64599887]
[1758550999597,0.20475351,113370.0,113360.0,0.64595887]
[1758550999762,0.20475351,113370.0,113360.0,0.64695887]
[1758550999963,0.52154351,113370.0,113360.0,0.07024823]
[1758551000173,0.54475351,113370.0,113360.0,0.07024823]
[1758551000566,0.54475351,113370.0,113360.0,0.00414044]
[1758551001004,0.85696152,113370.0,113360.0,0.00414044]
[1758551008509,0.56814152,113370.0,113360.0,0.18260951]
[1758551008707,0.82794152,113370.0,113360.0,0.18260951]
[1758551009119,0.85405152,113370.0,113360.0,0.18260951]
[1758551009322,0.83009152,113370.0,113360.0,0.00618044]
[1758551009551,0.83009152,113370.0,113360.0,0.02382334]
[1758551009752,0.83009152,113370.0,113360.0,0.20025241]
[1758551009955,0.83009152,113370.0,113360.0,0.18260951]
[1758551010127,0.85405152,113370.0,113360.0,0.18260951]
[1758551010412,0.56905152,113370.0,113360.0,0.18260951]
[1758551010616,0.02652801,113370.0,113360.0,0.87118622]
[1758551010809,0.17639795,113380.0,113370.0,0.1763994]
[1758551011135,0.34,113380.0,113370.0,0.1810494]
[1758551011329,0.51639795,113380.0,113370.0,0.1784394]
[1758551012076,0.36652345,113380.0,113370.0,0.1784394]
[1758551012273,0.34,113380.0,113370.0,0.1784394]
[1758551012491,0.51639795,113380.0,113370.0,0.1784394]
[1758551013176,0.34,113380.0,113370.0,0.29386097]
[1758551013388,0.34,113380.0,113370.0,0.58195354]
[1758551013806,0.341,113380.0,113370.0,0.58195354]
[1758551014989,0.341,113380.0,113370.0,0.29647097]
[1758551015200,0.341,113380.0,113370.0,0.57934354]
[1758551016614,0.341,113380.0,113370.0,0.29386097]
[1758551016825,0.341,113380.0,113370.0,0.57934354]
[1758551017879,0.001,113380.0,113370.0,0.58195354]
[1758551018715,0.001,113380.0,113370.0,0.86631354]
[1758551020080,0.001,113380.0,113370.0,0.86635354]
[1758551020924,0.001,113380.0,113370.0,0.87525442]
[1758551021377,0.001,113380.0,113370.0,0.86593354]
[1758551023432,0.001,113380.0,113370.0,0.87481403]
[1758551023662,0.001,113380.0,113370.0,0.58933146]
[1758551023882,0.001,113380.0,113370.0,0.87437403]
[1758551024103,0.001,113380.0,113370.0,0.58005097]
[1758551024289,0.001,113380.0,113370.0,0.86553354]
[1758551024976,0.001,113380.0,113370.0,0.57786097]
[1758551025211,0.001,113380.0,113370.0,0.86334354]
[1758551025458,0.17739795,113380.0,113370.0,0.57934354]
[1758551025675,0.17739795,113380.0,113370.0,0.86334354]
[1758551025848,0.02711,113380.0,113370.0,0.86334354]
[1758551026057,0.02496,113380.0,113370.0,0.86334354]
[1758551026274,0.001,113380.0,113370.0,0.86334354]
[1758551026649,0.00315,113380.0,113370.0,0.57934354]
[1758551026988,0.001,113380.0,113370.0,0.86334354]
[1758551027205,0.02496,113380.0,113370.0,0.86334354]
[1758551027412,0.001,113380.0,113370.0,0.86334354]
[1758551028079,0.001,113380.0,113370.0,0.86338354]
[1758551028245,0.00315,113380.0,113370.0,0.86338354]
[1758551028826,0.02711,113380.0,113370.0,0.86338354]
[1758551029064,0.02711,113380.0,113370.0,0.57790097]
[1758551029295,0.20656795,113380.0,113370.0,0.28396]
[1758551029508,0.17641351,113370.0,113360.0,0.17656951]
[1758551029710,0.20558351,113370.0,113360.0,0.54579918]
[1758551030075,0.20558351,113370.0,113360.0,0.11556201]
[1758551030452,0.20558351,113370.0,113360.0,0.57591108]
[1758551030779,0.20558351,113370.0,113360.0,0.57991108]
[1758551031145,0.20558351,113370.0,113360.0,0.11956201]
[1758551031356,0.20558351,113370.0,113360.0,0.40344201]
[1758551031565,0.20558351,113370.0,113360.0,0.29599108]
[1758551032881,0.20558351,113370.0,113360.0,0.11956201]
[1758551034607,0.54558351,113370.0,113360.0,0.00414044]
[1758551034861,0.57211046,113370.0,113360.0,0.00414044]
[1758551036087,0.85599046,113370.0,113360.0,0.00414044]
[1758551036460,0.85599046,113370.0,113360.0,0.00314044]
[1758551036671,0.85599046,113370.0,113360.0,0.00014044]
[1758551036876,0.00896723,113400.0,113380.0,0.17539795]
[1758551037139,0.00881367,113460.0,113410.0,0.03896946]
[1758551037140,0.05997347,113440.0,113410.0,0.03896946]
[1758551037363,0.02651347,113440.0,113420.0,0.28234795]
[1758551037577,0.2614,113440.0,113430.0,0.1960922]
[1758551037789,0.02699,113440.0,113430.0,0.26372986]
[1758551038043,0.32258,113450.0,113440.0,0.17630465]
[1758551038348,0.12699,113450.0,113440.0,0.17844465]
[1758551038577,0.3844,113450.0,113440.0,0.18169509]
[1758551038789,0.38645,113450.0,113440.0,0.17858509]
[1758551039013,0.41139,113450.0,113440.0,0.24579814]
[1758551039223,0.42024977,113450.0,113440.0,0.24579814]
[1758551039712,0.41139,113450.0,113440.0,0.24579814]
[1758551040120,0.41139,113450.0,113440.0,0.24879814]
[1758551040329,0.1,113450.0,113440.0,0.36421971]
[1758551040572,0.1,113450.0,113440.0,0.36732971]
[1758551040802,0.38424,113450.0,113440.0,0.73900541]
[1758551041215,0.38424,113450.0,113440.0,0.36874971]
[1758551041867,0.38424,113450.0,113440.0,0.36832971]
[1758551042330,0.1,113450.0,113440.0,0.36832971]
[1758551042514,0.1,113450.0,113440.0,0.74000541]
[1758551042728,0.1,113450.0,113440.0,0.88860479]
[1758551043805,0.1,113450.0,113440.0,0.88460479]
[1758551044257,0.1,113450.0,113440.0,0.89860479]
[1758551044471,0.1,113450.0,113440.0,0.37874971]
[1758551045141,0.10205,113450.0,113440.0,0.37832971]
[1758551045357,0.12699,113450.0,113440.0,0.37521971]
[1758551046023,0.41191,113450.0,113440.0,0.37521971]
[1758551047478,0.41191,113450.0,113440.0,0.34506781]
[1758551047802,0.41487,113450.0,113440.0,0.34292781]
[1758551048003,0.59115911,113450.0,113440.0,0.34292781]
[1758551048217,0.41487,113450.0,113440.0,0.34292781]
[1758551048418,0.41191,113450.0,113440.0,0.34292781]
[1758551048985,0.41191,113450.0,113440.0,0.34506781]
[1758551049202,0.58819911,113450.0,113440.0,0.34506781]
[1758551049429,0.41191,113450.0,113440.0,0.34506781]
[1758551050746,0.58819911,113450.0,113440.0,0.16662316]
[1758551050972,0.1,113450.0,113440.0,0.34506781]
[1758551051164,0.38468,113450.0,113440.0,0.86803289]
[1758551051578,0.38468,113450.0,113440.0,0.34417781]
[1758551052004,0.3846,113450.0,113440.0,0.33417781]
[1758551052149,0.1,113450.0,113440.0,0.33917781]
[1758551052404,0.3846,113450.0,113440.0,0.33917781]
[1758551052847,0.1,113450.0,113440.0,0.33917781]
[1758551053071,0.38456,113450.0,113440.0,0.89160479]
[1758551053952,0.38456,113450.0,113440.0,0.37174971]
[1758551054151,0.38456,113450.0,113440.0,0.89160479]
[1758551054304,0.38456,113450.0,113440.0,0.89118479]
[1758551054525,0.1,113450.0,113440.0,0.89118479]
[1758551055851,0.1,113450.0,113440.0,0.37132971]
[1758551056065,0.1,113450.0,113440.0,1.17612479]
[1758551056267,0.1,113450.0,113440.0,0.65626971]
[1758551056479,0.1,113450.0,113440.0,1.17612479]
[1758551057100,0.1,113450.0,113440.0,1.17570479]
[1758551058185,0.1,113450.0,113440.0,1.17612479]
[1758551060095,0.1,113450.0,113440.0,1.44582479]
[1758551060689,0.1,113450.0,113440.0,1.30554042]
[1758551063587,0.1,113450.0,113440.0,1.30596042]
[1758551064202,0.10615188,113450.0,113440.0,1.30596042]
[1758551064561,0.10615188,113450.0,113440.0,1.30554042]
[1758551067281,0.10615188,113450.0,113440.0,1.02102042]
[1758551067476,0.13076188,113450.0,113440.0,1.30219042]
[1758551068554,0.31031648,113450.0,113440.0,1.01577042]
[1758551068751,0.13402737,113450.0,113440.0,1.01577042]
[1758551069550,0.13402737,113450.0,113440.0,0.63577971]
[1758551069708,0.31031648,113450.0,113440.0,1.01577042]
[1758551069923,0.10619737,113450.0,113440.0,1.02082042]
[1758551070541,0.10619737,113450.0,113440.0,1.40081113]
[1758551070745,0.10619737,113450.0,113440.0,0.64124971]
[1758551070943,0.10619737,113450.0,113440.0,1.02124042]
[1758551071402,0.10619737,113450.0,113440.0,1.02082042]
[1758551071822,0.10619737,113450.0,113440.0,0.64082971]
[1758551072027,0.10619737,113450.0,113440.0,1.02082042]
[1758551072238,0.10619737,113450.0,113440.0,0.64082971]
[1758551072467,0.10619737,113450.0,113440.0,1.02082042]
[1758551074241,0.12876745,113450.0,113440.0,1.02082042]
[1758551074588,0.10619745,113450.0,113440.0,1.02082042]
[1758551076060,0.10619745,113450.0,113440.0,1.02124042]
[1758551076405,0.10619745,113450.0,113440.0,1.02082042]
[1758551077074,0.10619745,113450.0,113440.0,0.64082971]
[1758551077284,0.13080745,113450.0,113440.0,0.63783971]
[1758551077495,0.31031656,113450.0,113440.0,0.45947506]
[1758551077617,0.31031656,113450.0,113440.0,0.92045971]
[1758551077844,0.31031656,113450.0,113440.0,0.65075971]
[1758551078052,0.31031656,113450.0,113440.0,0.18977506]
[1758551078269,0.31031656,113450.0,113440.0,0.33592781]
[1758551078676,0.31031656,113450.0,113440.0,0.15962316]
[1758551079327,0.31031759,113450.0,113440.0,0.15962316]
[1758551079576,0.59495759,113450.0,113440.0,0.15962316]
[1758551081458,0.93495759,113450.0,113440.0,0.00714044]
[1758551081665,0.93515759,113450.0,113440.0,0.00714044]
[1758551081879,1.03043818,113450.0,113440.0,0.00714044]
[1758551082306,0.65031818,113450.0,113440.0,0.00514044]
[1758551082520,1.03043818,113450.0,113440.0,0.00014044]
[1758551082772,1.03043818,113450.0,113440.0,0.00114044]
[1758551082966,1.03243818,113450.0,113440.0,0.00114044]
[1758551083196,1.03243818,113450.0,113440.0,0.00014044]
[1758551083645,0.65231818,113450.0,113440.0,0.00014044]
[1758551083882,1.03247818,113450.0,113440.0,0.00014044]
[1758551084101,0.93723818,113450.0,113440.0,0.00014044]
[1758551084288,0.73758785,113450.0,113440.0,0.00014044]
[1758551084667,1.11786785,113450.0,113440.0,0.00014044]
[1758551084885,1.02254785,113450.0,113440.0,0.00014044]
[1758551085103,1.02250785,113450.0,113440.0,0.00014044]
[1758551085243,1.11782785,113450.0,113440.0,0.00014044]
[1758551085852,0.73758785,113450.0,113440.0,0.00014044]
[1758551086077,1.11774785,113450.0,113440.0,0.00014044]
[1758551086540,1.03263818,113450.0,113440.0,0.00014044]
[1758551086994,0.65231818,113450.0,113440.0,0.00014044]
[1758551087417,1.03255818,113450.0,113440.0,0.00014044]
[1758551087642,0.65231818,113450.0,113440.0,0.00014044]
[1758551087886,1.03255818,113450.0,113440.0,0.00014044]
[1758551089399,0.93727818,113450.0,113440.0,0.00014044]
[1758551089601,1.03259818,113450.0,113440.0,0.00014044]
[1758551090952,0.65231818,113450.0,113440.0,0.00014044]
[1758551091180,1.03251818,113450.0,113440.0,0.00014044]
[1758551091551,1.03239818,113450.0,113440.0,0.00014044]
[1758551091965,0.65231818,113450.0,113440.0,0.00014044]
[1758551092163,1.03231818,113450.0,113440.0,0.00014044]
[1758551094539,1.11758785,113450.0,113440.0,0.00014044]
[1758551094966,1.49796639,113450.0,113440.0,0.00014044]
[1758551096710,1.11796639,113450.0,113440.0,0.00014044]
[1758551096931,1.49792639,113450.0,113440.0,0.00014044]
[1758551097150,1.49172732,113450.0,113440.0,0.00014044]
[1758551098010,1.11176732,113450.0,113440.0,0.00014044]
[1758551098293,1.40645765,113450.0,113440.0,0.00014044]
[1758551098522,1.40637765,113450.0,113440.0,0.00014044]
[1758551098889,1.00392765,113450.0,113440.0,0.00221044]
[1758551099113,1.37898765,113450.0,113440.0,0.00536044]
[1758551099312,0.99866765,113450.0,113440.0,0.00536044]
[1758551099540,0.56328911,113450.0,113440.0,0.0229909]
[1758551099749,0.94366765,113450.0,113440.0,0.0229909]
[1758551099975,1.28366765,113450.0,113440.0,0.00536044]
[1758551100344,1.30879765,113450.0,113440.0,0.00221044]
[1758551100797,1.31180765,113450.0,113440.0,0.00014044]
[1758551102213,1.30879765,113450.0,113440.0,0.00221044]
[1758551102932,1.30879765,113450.0,113440.0,0.00014044]
[1758551103140,1.69218619,113450.0,113440.0,0.00014044]
[1758551103352,1.31180765,113450.0,113440.0,0.00014044]
[1758551104645,1.50197921,113450.0,113440.0,0.00014044]
[1758551105100,1.50816424,113450.0,113440.0,0.00014044]
[1758551105299,1.59343391,113450.0,113440.0,0.00014044]
[1758551110009,1.59344213,113450.0,113440.0,0.00014044]
[1758551110207,1.02289203,113450.0,113440.0,0.00014044]
[1758551110433,1.59344213,113450.0,113440.0,0.00014044]
[1758551111479,0.51633574,113420.0,113410.0,0.00315]
[1758551111728,0.17635129,113410.0,113400.0,0.07168631]
[1758551111978,0.46162634,113410.0,113400.0,0.15667647]
[1758551112215,0.46162634,113410.0,113400.0,0.08856016]
[1758551112423,0.80162634,113410.0,113400.0,0.09063016]
[1758551112647,0.80162634,113410.0,113400.0,0.00536049]
[1758551112853,1.11203139,113410.0,113400.0,0.00221049]
[1758551113030,0.82675634,113410.0,113400.0,0.00221049]
[1758551113266,1.11203139,113410.0,113400.0,0.00536049]
[1758551113459,0.83350635,113410.0,113400.0,0.00536049]
[1758551113729,0.81037635,113410.0,113400.0,0.00536049]
[1758551113950,1.19173635,113410.0,113400.0,0.00536049]
[1758551114159,1.18302634,113410.0,113400.0,0.00836049]
[1758551114412,1.18302634,113410.0,113400.0,0.00536049]
[1758551114795,1.18302634,113410.0,113400.0,0.00836049]
[1758551114998,1.18330634,113410.0,113400.0,0.00836049]
[1758551115214,1.18330634,113410.0,113400.0,0.00936049]
[1758551116061,0.82814534,113410.0,113400.0,0.00936049]
[1758551116529,0.54287029,113410.0,113400.0,0.00936049]
[1758551116715,1.20970534,113410.0,113400.0,0.00936049]
[1758551117879,1.23340534,113410.0,113400.0,0.00936049]
[1758551118099,1.23959441,113410.0,113400.0,0.00936049]
[1758551118352,1.24165441,113410.0,113400.0,0.00936049]
[1758551118830,0.94813029,113410.0,113400.0,0.00936049]
[1758551119161,0.85184534,113410.0,113400.0,0.00936049]
[1758551119381,1.20982534,113410.0,113400.0,0.00936049]
[1758551119570,0.82814534,113410.0,113400.0,0.02699717]
[1758551119741,0.80162634,113410.0,113400.0,0.00936049]
[1758551119959,1.18342634,113410.0,113400.0,0.00978049]
[1758551120161,1.18342634,113410.0,113400.0,0.02699717]
[1758551120400,0.80162634,113410.0,113400.0,0.02699717]
[1758551120525,1.18342634,113410.0,113400.0,0.02699717]
[1758551121119,0.80162634,113410.0,113400.0,0.02699717]
[1758551121330,1.18338634,113410.0,113400.0,0.02699717]
[1758551121754,1.18338634,113410.0,113400.0,0.00936049]
[1758551121937,1.18338634,113410.0,113400.0,0.02699717]
[1758551122206,1.20914634,113410.0,113400.0,0.00621049]
[1758551125540,1.21230634,113410.0,113400.0,0.00414049]
[1758551125680,1.49758139,113410.0,113400.0,0.00414049]
[1758551126377,0.92703129,113410.0,113400.0,0.00414049]
[1758551126521,1.21230634,113410.0,113400.0,0.00414049]
[1758551127190,1.49758139,113410.0,113400.0,0.00414049]
[1758551127397,1.78904196,113410.0,113400.0,0.00414049]
[1758551127601,1.53028717,113410.0,113400.0,0.00414049]
[1758551128157,1.53028717,113410.0,113400.0,0.00314049]
[1758551128574,0.95973707,113410.0,113400.0,0.00314049]
[1758551128827,1.14852717,113410.0,113400.0,0.00014049]
[1758551129026,0.95961707,113410.0,113400.0,0.00014049]
[1758551129229,1.53116717,113410.0,113400.0,0.00014049]
[1758551130039,1.9709568,113410.0,113400.0,0.00014049]
[1758551130245,3.4873198,113410.0,113400.0,0.00014049]